[Event "10th Iberoamericano-ch 2024"]
[Site "Linares"]
[Date "2024.10.01"]
[Round "9.27"]
[White "Blanco Acevedo, Cristobal Jose"]
[Black "Pastor Carvajal, Jeigoth"]
[Result "1-0"]
[Annotator "RC"]
[ECO "D35"]
[WhiteElo "2301"]
[BlackElo "2120"]
[PlyCount "85"]
[EventDate "2024.09.25"]
[EventType "swiss"]
[EventCountry "ESP"]
[SourceTitle "playchess.com"]
[Source "ChessBase"]
[SourceQuality "1"]
[TimeControl "5400+30"]

1. c4 {[%emt 0:00:01]} e6 {[%emt 0:10:36]} 2. Nc3 {[%emt 0:00:28]} d5 {[%emt 0:00:40]} 3. d4 {[%emt 0:00:07]} Nf6 {[%emt 0:00:46]} 4. Bf4 {[%emt 0:01:00]} c6 {[%emt 0:06:02]} 5. e3 {[%emt 0:00:19]} Be7 {[%emt 0:01:34]} 6. Bd3 {[%emt 0:00:18]} Nbd7 {[%emt 0:01:41]} 7. cxd5 {[%emt 0:01:03]} exd5 {[%emt 0:00:07]} 8. h3 {[%emt 0:00:16]} O-O {[%emt 0:02:51]} 9. Nf3 {[%emt 0:00:31]} Re8 {[%emt 0:00:23]} 10. Qc2 {[%emt 0:00:36]} Nf8 {[%emt 0:01:00]} 11. O-O-O {[%emt 0:00:32]} Ng6 {[%emt 0:00:55]} 12. Bg5 {[%emt 0:03:16]} Ne4 {[%emt 0:02:38]} 13. h4 {[%emt 0:01:01]} f5 {[%emt 0:21:46]} 14. Bxe7 {[%emt 0:01:55]} Qxe7 {[%emt 0:00:22]} 15. h5 {[%emt 0:00:41]} Nh8 {[%emt 0:03:55]} 16. Ne5 {[%emt 0:00:31]} Nf7 {[%emt 0:00:34]} 17. f4 {[%emt 0:00:23]} Nxe5 {[%emt 0:02:36]} 18. dxe5 {[%emt 0:00:23]} Qc5 {[%emt 0:01:42]} 19. Nxe4 {[%emt 0:02:28]} Qxc2+ {[%emt 0:01:00]} 20. Kxc2 {[%emt 0:00:08]} fxe4 {[%emt 0:01:47]} 21. Be2 {[%emt 0:00:05]} Be6 {[%emt 0:01:20]} 22. g4 {[%emt 0:00:54]} Bf7 {[%emt 0:00:05]} 23. g5 {[%emt 0:02:42]} Be6 {[%emt 0:02:34]} 24. Rhg1 {[%emt 0:00:39]} Rad8 {[%emt 0:01:04]} 25. b4 {[%emt 0:01:20]} b6 {[%emt 0:00:35]} 26. Rd2 {[%emt 0:03:30]} c5 {[%emt 0:01:33]} 27. Kc3 {[%emt 0:00:21]} cxb4+ {[%emt 0:02:11]} 28. Kxb4 {[%emt 0:01:42]} Rc8 {[%emt 0:00:05]} 29. Ba6 {[%emt 0:01:21]} Rc5 {[%emt 0:01:44]} 30. Rgg2 {[%emt 0:00:27]} Bc8 {[%emt 0:03:04]} 31. Bb5 {[%emt 0:01:02]} Re7 {[%emt 0:00:54]} 32. Rd4 {[%emt 0:06:08]} Rec7 {[%emt 0:05:11]} 33. Rgd2 {[%emt 0:00:30]} Bb7 {[%emt 0:05:40]} 34. g6 {[%emt 0:01:21]} hxg6 {[%emt 0:01:41]} 35. hxg6 {[%emt 0:00:04]} Rc3 {[%emt 0:00:34]} 36. Rxd5 {[%emt 0:03:30]} a5+ {[%emt 0:01:53]} 37. Ka4 {[%emt 0:00:06]} Bxd5 {[%emt 0:00:38]} 38. Rxd5 {[%emt 0:00:04]} Rc8 {[%emt 0:00:16]} 39. e6 {[%emt 0:00:19]} R8c4+ {[%emt 0:05:05]} 40. Bxc4 {[%emt 0:00:07]} Rxc4+ {[%emt 0:00:02]} 41. Kb5 {[%emt 0:00:11]} Rb4+ {[%emt 0:00:05]} 42. Kc6 {[%emt 0:00:04]} Kf8 {[%emt 0:00:04]} 43. Kd7 {[%emt 0:00:08]} 1-0

[Event "10th Iberoamericano-ch 2024"]
[Site "Linares"]
[Date "2024.10.01"]
[Round "9.28"]
[White "Giron, Jorge Ernesto"]
[Black "Jimenez Fernandez, Rebeca"]
[Result "1-0"]
[Annotator "RC"]
[ECO "E06"]
[WhiteElo "2279"]
[BlackElo "2097"]
[PlyCount "55"]
[EventDate "2024.09.25"]
[EventType "swiss"]
[EventCountry "ESP"]
[SourceTitle "playchess.com"]
[Source "ChessBase"]
[SourceQuality "1"]
[TimeControl "5400+30"]

1. d4 {[%emt 0:00:57]} Nf6 {[%emt 0:00:05]} 2. c4 {[%emt 0:00:07]} e6 {[%emt 0:00:02]} 3. g3 {[%emt 0:00:06]} d5 {[%emt 0:00:07]} 4. Bg2 {[%emt 0:00:04]} Be7 {[%emt 0:00:03]} 5. Nf3 {[%emt 0:00:06]} O-O {[%emt 0:00:04]} 6. O-O {[%emt 0:00:04]} c6 {[%emt 0:00:02]} 7. Nc3 {[%emt 0:00:31]} a5 {[%emt 0:00:40]} 8. b3 {[%emt 0:11:39]} b6 {[%emt 0:03:11]} 9. Qd3 {[%emt 0:00:46]} Ba6 {[%emt 0:00:58]} 10. a4 {[%emt 0:00:06]} Ra7 {[%emt 0:15:06]} 11. Rd1 {[%emt 0:02:48]} Qc8 {[%emt 0:05:58]} 12. e4 {[%emt 0:00:29]} dxe4 {[%emt 0:00:42]} 13. Nxe4 {[%emt 0:00:02]} Rd8 {[%emt 0:08:23]} 14. Bh3 {[%emt 0:08:33]} c5 {[%emt 0:07:31]} 15. Nfg5 {[%emt 0:00:05]} Nbd7 {[%emt 0:20:11]} 16. Nxf7 {[%emt 0:11:15]} Kxf7 {[%emt 0:02:25]} 17. Bxe6+ {[%emt 0:00:48]} Kf8 {[%emt 0:11:33]} 18. Nxf6 {[%emt 0:00:24]} Bxf6 {[%emt 0:00:19]} 19. Qxh7 {[%emt 0:00:14]} Ne5 {[%emt 0:10:15]} 20. Bxc8 {[%emt 0:00:53]} Bxc8 {[%emt 0:00:04]} 21. d5 {[%emt 0:08:59]} Nf3+ {[%emt 0:00:23]} 22. Kg2 {[%emt 0:00:04]} Bg4 {[%emt 0:03:11]} 23. Bf4 {[%emt 0:02:38]} Bxa1 {[%emt 0:07:06]} 24. Rxa1 {[%emt 0:00:09]} Re8 {[%emt 0:01:40]} 25. h3 {[%emt 0:01:15]} Ne1+ {[%emt 0:00:25]} 26. Rxe1 {[%emt 0:00:10]} Bxh3+ {[%emt 0:01:19]} 27. Qxh3 {[%emt 0:00:29]} Rxe1 {[%emt 0:00:38]} 28. Qf5+ {[%emt 0:01:08]} 1-0

[Event "10th Iberoamericano-ch 2024"]
[Site "Linares"]
[Date "2024.10.01"]
[Round "9.29"]
[White "Barrenechea Bahamonde, Gustavo"]
[Black "Ruiz Buendia, Miguel"]
[Result "0-1"]
[Annotator "RC"]
[ECO "C22"]
[WhiteElo "2093"]
[BlackElo "2295"]
[PlyCount "51"]
[EventDate "2024.09.25"]
[EventType "swiss"]
[EventCountry "ESP"]
[SourceTitle "playchess.com"]
[Source "ChessBase"]
[SourceQuality "1"]
[TimeControl "5400+30"]

1. e4 {[%emt 0:12:11]} e5 {[%emt 0:00:08]} 2. d4 {[%emt 0:01:02]} exd4 {[%emt 0:00:13]} 3. Qxd4 {[%emt 0:00:07]} Nc6 {[%emt 0:00:11]} 4. Qe3 {[%emt 0:00:05]} Nf6 {[%emt 0:00:14]} 5. Nc3 {[%emt 0:00:07]} Bb4 {[%emt 0:00:30]} 6. Bd2 {[%emt 0:00:13]} O-O {[%emt 0:00:32]} 7. O-O-O {[%emt 0:00:10]} Re8 {[%emt 0:00:18]} 8. Bc4 {[%emt 0:01:41]} d6 {[%emt 0:00:12]} 9. Nf3 {[%emt 0:00:24]} Be6 {[%emt 0:00:19]} 10. Bxe6 {[%emt 0:00:12]} Rxe6 {[%emt 0:00:04]} 11. Ng5 {[%emt 0:00:10]} Re8 {[%emt 0:00:05]} 12. f3 {[%emt 0:00:39]} d5 {[%emt 0:14:21]} 13. Qf4 {[%emt 0:12:08]} Bd6 {[%emt 0:10:33]} 14. Qh4 {[%emt 0:07:52]} h6 {[%emt 0:01:04]} 15. Nh3 {[%emt 0:01:36]} dxe4 {[%emt 0:04:15]} 16. Bxh6 {[%emt 0:04:54]} gxh6 {[%emt 0:04:30]} 17. Qxh6 {[%emt 0:02:48]} e3 {[%emt 0:21:12]} 18. Ng5 {[%emt 0:23:04]} e2 {[%emt 0:01:48]} 19. Nd5 {[%emt 0:04:09]} exd1=Q+ {[%emt 0:00:45]} 20. Rxd1 {[%emt 0:00:18]} Be5 {[%emt 0:07:35]} 21. f4 {[%emt 0:04:46]} Nd4 {[%emt 0:11:27]} 22. c4 {[%emt 0:13:51]} Ne2+ {[%emt 0:01:45]} 23. Kc2 {[%emt 0:00:19]} Nxf4 {[%emt 0:04:13]} 24. Nxf4 {[%emt 0:01:02]} Qc8 {[%emt 0:00:17]} 25. Nfe6 {[%emt 0:08:37]} Rxe6 {[%emt 0:00:50]} 26. Rd3 {[%emt 0:00:31]} 0-1

[Event "10th Iberoamericano-ch 2024"]
[Site "Linares"]
[Date "2024.10.01"]
[Round "9.30"]
[White "Palma Villanueva, Miguel Tadeo"]
[Black "Suarez Gomez, Paula"]
[Result "1-0"]
[Annotator "RC"]
[ECO "C11"]
[WhiteElo "2255"]
[BlackElo "2111"]
[PlyCount "153"]
[EventDate "2024.09.25"]
[EventType "swiss"]
[EventCountry "ESP"]
[SourceTitle "playchess.com"]
[Source "ChessBase"]
[SourceQuality "1"]
[TimeControl "5400+30"]

1. e4 {[%emt 0:04:40]} e6 {[%emt 0:00:04]} 2. d4 {[%emt 0:00:04]} d5 {[%emt 0:00:04]} 3. Nc3 {[%emt 0:00:03]} Nf6 {[%emt 0:00:25]} 4. Bg5 {[%emt 0:00:05]} dxe4 {[%emt 0:00:31]} 5. Nxe4 {[%emt 0:00:05]} Be7 {[%emt 0:00:03]} 6. Bxf6 {[%emt 0:00:05]} gxf6 {[%emt 0:00:12]} 7. Nf3 {[%emt 0:00:05]} f5 {[%emt 0:00:16]} 8. Ned2 {[%emt 0:02:52]} a6 {[%emt 0:03:06]} 9. c3 {[%emt 0:00:18]} c5 {[%emt 0:08:02]} 10. dxc5 {[%emt 0:10:41]} Bxc5 {[%emt 0:01:17]} 11. Nb3 {[%emt 0:00:12]} Bd6 {[%emt 0:07:55]} 12. Qd2 {[%emt 0:00:48]} Qe7 {[%emt 0:09:03]} 13. O-O-O {[%emt 0:07:32]} Bc7 {[%emt 0:00:25]} 14. Bd3 {[%emt 0:00:06]} Nc6 {[%emt 0:12:11]} 15. Rde1 {[%emt 0:13:25]} Qf6 {[%emt 0:00:53]} 16. Rhg1 {[%emt 0:00:09]} h5 {[%emt 0:12:48]} 17. Qc2 {[%emt 0:05:02]} Ne7 {[%emt 0:00:16]} 18. h4 {[%emt 0:06:55]} Bd7 {[%emt 0:06:38]} 19. Nc5 {[%emt 0:02:17]} O-O-O {[%emt 0:01:56]} 20. Nd4 {[%emt 0:10:24]} Nd5 {[%emt 0:10:17]} 21. g3 {[%emt 0:00:32]} Nb4 {[%emt 0:01:21]} 22. cxb4 {[%emt 0:01:32]} Qxd4 {[%emt 0:00:10]} 23. a3 {[%emt 0:00:43]} Bb5 {[%emt 0:12:19]} 24. Rd1 {[%emt 0:04:25]} Bxd3 {[%emt 0:01:17]} 25. Rxd3 {[%emt 0:00:05]} Qf6 {[%emt 0:00:05]} 26. Rc3 {[%emt 0:00:08]} Qe7 {[%emt 0:01:04]} 27. Kb1 {[%emt 0:05:15]} Kb8 {[%emt 0:00:51]} 28. Rc1 {[%emt 0:00:06]} Be5 {[%emt 0:03:24]} 29. Rc4 {[%emt 0:05:10]} Rd5 {[%emt 0:02:25]} 30. f4 {[%emt 0:03:23]} Bd6 {[%emt 0:03:12]} 31. Na4 {[%emt 0:01:27]} Rb5 {[%emt 0:00:42]} 32. Rc8+ {[%emt 0:02:42]} Rxc8 {[%emt 0:00:08]} 33. Qxc8+ {[%emt 0:00:03]} Ka7 {[%emt 0:00:06]} 34. Qh8 {[%emt 0:00:11]} Bc7 {[%emt 0:00:46]} 35. Qd4+ {[%emt 0:03:29]} Kb8 {[%emt 0:00:13]} 36. Nc5 {[%emt 0:00:13]} Ka8 {[%emt 0:01:58]} 37. a4 {[%emt 0:01:59]} Rb6 {[%emt 0:00:23]} 38. Nd7 {[%emt 0:00:06]} Rd6 {[%emt 0:01:29]} 39. Rxc7 {[%emt 0:01:39]} Rxd4 {[%emt 0:00:05]} 40. Nb6+ {[%emt 0:00:05]} Ka7 {[%emt 0:00:08]} 41. Nc8+ {[%emt 0:00:10]} Kb8 {[%emt 0:00:07]} 42. Rxe7 {[%emt 0:00:05]} Kxc8 {[%emt 0:00:04]} 43. Rxf7 {[%emt 0:00:06]} Rd3 {[%emt 0:00:59]} 44. Rg7 {[%emt 0:00:06]} Kb8 {[%emt 0:00:22]} 45. Kc2 {[%emt 0:00:08]} Re3 {[%emt 0:00:11]} 46. a5 {[%emt 0:01:12]} Kc8 {[%emt 0:00:23]} 47. b3 {[%emt 0:00:05]} Kb8 {[%emt 0:02:03]} 48. Kb2 {[%emt 0:00:04]} Re2+ {[%emt 0:01:08]} 49. Ka3 {[%emt 0:00:19]} Re4 {[%emt 0:00:31]} 50. Kb2 {[%emt 0:02:24]} Re3 {[%emt 0:00:09]} 51. Ka3 {[%emt 0:01:20]} Re4 {[%emt 0:00:09]} 52. Ka4 {[%emt 0:00:05]} Rd4 {[%emt 0:00:07]} 53. Re7 {[%emt 0:02:37]} Re4 {[%emt 0:00:21]} 54. Rh7 {[%emt 0:00:21]} Re3 {[%emt 0:00:12]} 55. Rxh5 {[%emt 0:01:23]} Rxg3 {[%emt 0:00:05]} 56. Rh6 {[%emt 0:00:05]} Re3 {[%emt 0:02:13]} 57. h5 {[%emt 0:00:59]} Re4 {[%emt 0:00:23]} 58. Rf6 {[%emt 0:00:12]} Rxf4 {[%emt 0:00:15]} 59. Rxe6 {[%emt 0:00:06]} Rh4 {[%emt 0:00:05]} 60. h6 {[%emt 0:00:05]} Rh3 {[%emt 0:00:59]} 61. Rf6 {[%emt 0:00:59]} f4 {[%emt 0:00:16]} 62. Rf8+ {[%emt 0:01:44]} Ka7 {[%emt 0:00:08]} 63. Rf6 {[%emt 0:00:09]} Kb8 {[%emt 0:00:08]} 64. b5 {[%emt 0:00:56]} axb5+ {[%emt 0:00:18]} 65. Kb4 {[%emt 0:01:05]} Ka7 {[%emt 0:00:51]} 66. Kxb5 {[%emt 0:00:25]} Rxb3+ {[%emt 0:00:13]} 67. Kc4 {[%emt 0:00:05]} Rh3 {[%emt 0:00:22]} 68. Kd4 {[%emt 0:00:03]} f3 {[%emt 0:01:35]} 69. Ke3 {[%emt 0:00:40]} Kb8 {[%emt 0:00:27]} 70. Kf4 {[%emt 0:00:42]} Rh1 {[%emt 0:01:06]} 71. Kg5 {[%emt 0:00:18]} Rg1+ {[%emt 0:00:43]} 72. Kh5 {[%emt 0:00:05]} Rg3 {[%emt 0:00:34]} 73. Kh4 {[%emt 0:00:39]} Rg8 {[%emt 0:00:34]} 74. Rxf3 {[%emt 0:00:11]} Ka7 {[%emt 0:00:16]} 75. h7 {[%emt 0:01:51]} Rb8 {[%emt 0:00:33]} 76. Kh5 {[%emt 0:00:21]} Ka6 {[%emt 0:00:09]} 77. Rf5 {[%emt 0:00:05]} 1-0

[Event "10th Iberoamericano-ch 2024"]
[Site "Linares"]
[Date "2024.10.01"]
[Round "9.31"]
[White "Sicilia Laino, Juan Diego"]
[Black "Masague Artero, Guerau"]
[Result "0-1"]
[Annotator "RC"]
[ECO "B13"]
[WhiteElo "2090"]
[BlackElo "2251"]
[PlyCount "50"]
[EventDate "2024.09.25"]
[EventType "swiss"]
[EventCountry "ESP"]
[SourceTitle "playchess.com"]
[Source "ChessBase"]
[SourceQuality "1"]
[TimeControl "5400+30"]

1. e4 {[%emt 0:00:03]} c6 {[%emt 0:00:43]} 2. d4 {[%emt 0:00:09]} d5 {[%emt 0:00:05]} 3. exd5 {[%emt 0:00:06]} cxd5 {[%emt 0:00:04]} 4. Bd3 {[%emt 0:00:08]} Nc6 {[%emt 0:00:05]} 5. c3 {[%emt 0:00:07]} Qc7 {[%emt 0:00:06]} 6. Ne2 {[%emt 0:06:48]} Bg4 {[%emt 0:00:09]} 7. f3 {[%emt 0:01:26]} Bd7 {[%emt 0:00:05]} 8. Bf4 {[%emt 0:01:26]} e5 {[%emt 0:00:13]} 9. dxe5 {[%emt 0:02:33]} Nxe5 {[%emt 0:00:20]} 10. O-O {[%emt 0:15:30]} Bd6 {[%emt 0:01:06]} 11. Bxe5 {[%emt 0:00:37]} Bxe5 {[%emt 0:00:06]} 12. f4 {[%emt 0:00:11]} Bd6 {[%emt 0:03:34]} 13. Nd2 {[%emt 0:07:25]} Nf6 {[%emt 0:01:19]} 14. h3 {[%emt 0:02:57]} O-O {[%emt 0:00:58]} 15. Qc2 {[%emt 0:02:37]} Rfe8 {[%emt 0:06:13]} 16. Nb3 {[%emt 0:06:23]} Rac8 {[%emt 0:09:42]} 17. Nbd4 {[%emt 0:00:24]} Ne4 {[%emt 0:05:40]} 18. Rad1 {[%emt 0:01:18]} a6 {[%emt 0:00:48]} 19. Qb3 {[%emt 0:09:37]} Nf6 {[%emt 0:01:49]} 20. Rde1 {[%emt 0:04:10]} Re3 {[%emt 0:03:49]} 21. Bf5 {[%emt 0:02:31]} Rce8 {[%emt 0:00:41]} 22. Bxd7 {[%emt 0:01:31]} Qxd7 {[%emt 0:00:10]} 23. Rf3 {[%emt 0:00:29]} R3e4 {[%emt 0:01:25]} 24. Qd1 {[%emt 0:02:32]} Bc5 {[%emt 0:05:57]} 25. Ref1 {[%emt 0:02:25]} Rxe2 {[%emt 0:01:05]} 0-1

[Event "10th Iberoamericano-ch 2024"]
[Site "Linares"]
[Date "2024.10.01"]
[Round "9.32"]
[White "Rodriguez Lopez, Rafael"]
[Black "Lorente Serrano, Rosa Adela"]
[Result "1-0"]
[Annotator "RC"]
[ECO "B51"]
[WhiteElo "2150"]
[BlackElo "2087"]
[PlyCount "95"]
[EventDate "2024.09.25"]
[EventType "swiss"]
[EventCountry "ESP"]
[SourceTitle "playchess.com"]
[Source "ChessBase"]
[SourceQuality "1"]
[TimeControl "5400+30"]

1. e4 {[%emt 0:00:05]} c5 {[%emt 0:00:06]} 2. Nf3 {[%emt 0:00:04]} d6 {[%emt 0:00:06]} 3. Bb5+ {[%emt 0:00:04]} Nd7 {[%emt 0:00:05]} 4. d4 {[%emt 0:00:08]} cxd4 {[%emt 0:04:31]} 5. Nxd4 {[%emt 0:00:11]} Ngf6 {[%emt 0:00:10]} 6. O-O {[%emt 0:00:09]} e6 {[%emt 0:10:08]} 7. Re1 {[%emt 0:00:42]} Be7 {[%emt 0:06:51]} 8. Bf1 {[%emt 0:00:07]} O-O {[%emt 0:04:57]} 9. c4 {[%emt 0:00:10]} a6 {[%emt 0:00:17]} 10. Nc3 {[%emt 0:00:41]} Qc7 {[%emt 0:00:26]} 11. Be3 {[%emt 0:08:08]} b6 {[%emt 0:01:07]} 12. Rc1 {[%emt 0:00:18]} Bb7 {[%emt 0:00:33]} 13. f3 {[%emt 0:00:19]} Rac8 {[%emt 0:01:31]} 14. Kh1 {[%emt 0:01:37]} Rfd8 {[%emt 0:04:08]} 15. Qd2 {[%emt 0:02:14]} Bf8 {[%emt 0:05:38]} 16. a3 {[%emt 0:00:11]} Qb8 {[%emt 0:05:50]} 17. Qf2 {[%emt 0:00:13]} Qa8 {[%emt 0:15:42]} 18. Na4 {[%emt 0:13:16]} h6 {[%emt 0:14:55]} 19. Nb3 {[%emt 0:02:50]} d5 {[%emt 0:00:29]} 20. exd5 {[%emt 0:01:40]} exd5 {[%emt 0:00:16]} 21. Nxb6 {[%emt 0:00:18]} Nxb6 {[%emt 0:00:05]} 22. Bxb6 {[%emt 0:00:07]} Rd7 {[%emt 0:01:48]} 23. c5 {[%emt 0:07:03]} d4 {[%emt 0:05:31]} 24. Nxd4 {[%emt 0:00:36]} Nd5 {[%emt 0:00:54]} 25. b4 {[%emt 0:03:09]} Nxb6 {[%emt 0:00:59]} 26. cxb6 {[%emt 0:00:04]} Rxc1 {[%emt 0:00:05]} 27. Rxc1 {[%emt 0:00:11]} Qd8 {[%emt 0:12:12]} 28. Nb3 {[%emt 0:00:24]} Bd6 {[%emt 0:02:09]} 29. Re1 {[%emt 0:12:06]} Bf4 {[%emt 0:00:33]} 30. Nc5 {[%emt 0:01:09]} Re7 {[%emt 0:01:18]} 31. Rxe7 {[%emt 0:01:02]} Qxe7 {[%emt 0:00:01]} 32. Bxa6 {[%emt 0:02:53]} Bxa6 {[%emt 0:01:31]} 33. Nxa6 {[%emt 0:00:16]} Qb7 {[%emt 0:00:17]} 34. Nc7 {[%emt 0:04:21]} Bxc7 {[%emt 0:00:31]} 35. bxc7 {[%emt 0:00:05]} Qxc7 {[%emt 0:00:02]} 36. Qb2 {[%emt 0:01:12]} Qd7 {[%emt 0:00:08]} 37. Qb1 {[%emt 0:00:26]} Qb5 {[%emt 0:00:10]} 38. h3 {[%emt 0:00:12]} h5 {[%emt 0:00:27]} 39. Qb3 {[%emt 0:11:29]} h4 {[%emt 0:00:21]} 40. a4 {[%emt 0:00:47]} Qf1+ {[%emt 0:00:05]} 41. Kh2 {[%emt 0:00:03]} Qe1 {[%emt 0:00:49]} 42. f4 {[%emt 0:00:16]} g5 {[%emt 0:00:15]} 43. b5 {[%emt 0:01:13]} Qe4 {[%emt 0:00:55]} 44. Qd1 {[%emt 0:01:25]} Qxf4+ {[%emt 0:01:29]} 45. Kh1 {[%emt 0:00:05]} Qb4 {[%emt 0:00:37]} 46. Qd8+ {[%emt 0:00:59]} Kh7 {[%emt 0:00:06]} 47. Qxg5 {[%emt 0:00:20]} Qxa4 {[%emt 0:00:45]} 48. Qh5+ {[%emt 0:00:11]} 1-0

[Event "10th Iberoamericano-ch 2024"]
[Site "Linares"]
[Date "2024.10.01"]
[Round "9.33"]
[White "Li Chen, Helena Joana"]
[Black "Rocha, Maximiliano"]
[Result "1/2-1/2"]
[Annotator "RC"]
[ECO "C50"]
[WhiteElo "2068"]
[BlackElo "2143"]
[PlyCount "208"]
[EventDate "2024.09.25"]
[EventType "swiss"]
[EventCountry "ESP"]
[SourceTitle "playchess.com"]
[Source "ChessBase"]
[SourceQuality "1"]
[TimeControl "5400+30"]

1. e4 {[%emt 0:00:04]} e5 {[%emt 0:02:50]} 2. Nf3 {[%emt 0:00:06]} Nc6 {[%emt 0:00:14]} 3. Bc4 {[%emt 0:00:40]} g6 {[%emt 0:01:15]} 4. Nc3 {[%emt 0:02:14]} Bg7 {[%emt 0:00:08]} 5. a4 {[%emt 0:01:13]} d6 {[%emt 0:00:58]} 6. d3 {[%emt 0:00:53]} Nge7 {[%emt 0:00:35]} 7. Be3 {[%emt 0:13:20]} O-O {[%emt 0:02:49]} 8. Qd2 {[%emt 0:00:02]} Bg4 {[%emt 0:00:02]} 9. Bh6 {[%emt 0:03:18]} Bxf3 {[%emt 0:07:25]} 10. Bxg7 {[%emt 0:00:52]} Kxg7 {[%emt 0:00:21]} 11. gxf3 {[%emt 0:00:05]} Nd4 {[%emt 0:00:32]} 12. O-O-O {[%emt 0:02:23]} f5 {[%emt 0:16:11]} 13. f4 {[%emt 0:07:46]} fxe4 {[%emt 0:00:11]} 14. fxe5 {[%emt 0:00:05]} dxe5 {[%emt 0:00:07]} 15. dxe4 {[%emt 0:00:54]} c6 {[%emt 0:11:43]} 16. Qe3 {[%emt 0:02:00]} Qb6 {[%emt 0:10:46]} 17. Ne2 {[%emt 0:04:00]} Rad8 {[%emt 0:00:35]} 18. Nxd4 {[%emt 0:03:48]} Rxd4 {[%emt 0:00:25]} 19. Qg5 {[%emt 0:05:31]} Qc7 {[%emt 0:08:54]} 20. Rxd4 {[%emt 0:07:26]} exd4 {[%emt 0:00:01]} 21. Rf1 {[%emt 0:00:01]} Qf4+ {[%emt 0:01:46]} 22. Qxf4 {[%emt 0:00:05]} Rxf4 {[%emt 0:00:01]} 23. f3 {[%emt 0:02:45]} g5 {[%emt 0:00:28]} 24. c3 {[%emt 0:02:18]} dxc3 {[%emt 0:00:31]} 25. bxc3 {[%emt 0:00:05]} Ng6 {[%emt 0:00:07]} 26. Kd2 {[%emt 0:00:11]} Ne5 {[%emt 0:00:07]} 27. Be2 {[%emt 0:00:04]} Kf6 {[%emt 0:01:55]} 28. Ke3 {[%emt 0:00:44]} h6 {[%emt 0:00:33]} 29. a5 {[%emt 0:00:18]} Ke6 {[%emt 0:05:03]} 30. Rb1 {[%emt 0:00:46]} Rf7 {[%emt 0:00:12]} 31. Rh1 {[%emt 0:00:06]} Rf4 {[%emt 0:06:07]} 32. h4 {[%emt 0:03:11]} Rxh4 {[%emt 0:02:38]} 33. Rxh4 {[%emt 0:00:07]} gxh4 {[%emt 0:00:01]} 34. f4 {[%emt 0:00:01]} Nf7 {[%emt 0:01:33]} 35. Bg4+ {[%emt 0:00:13]} Ke7 {[%emt 0:00:34]} 36. e5 {[%emt 0:00:26]} b6 {[%emt 0:00:50]} 37. a6 {[%emt 0:00:27]} h5 {[%emt 0:02:37]} 38. Bxh5 {[%emt 0:03:16]} Nh6 {[%emt 0:00:59]} 39. Kf3 {[%emt 0:02:21]} Ke6 {[%emt 0:05:29]} 40. Ke4 {[%emt 0:02:11]} h3 {[%emt 0:00:15]} 41. Kf3 {[%emt 0:00:13]} h2 {[%emt 0:00:20]} 42. Kg2 {[%emt 0:05:46]} Kf5 {[%emt 0:00:17]} 43. e6 {[%emt 0:03:12]} Ng8 {[%emt 0:00:01]} 44. Bf3 {[%emt 0:01:10]} h1=Q+ {[%emt 0:00:50]} 45. Kxh1 {[%emt 0:00:09]} Ne7 {[%emt 0:00:01]} 46. Kg2 {[%emt 0:02:20]} Kxf4 {[%emt 0:00:01]} 47. Bh5 {[%emt 0:00:21]} Kg5 {[%emt 0:00:28]} 48. Be8 {[%emt 0:02:06]} Kf4 {[%emt 0:04:07]} 49. Bd7 {[%emt 0:02:42]} Ke4 {[%emt 0:06:31]} 50. Kg3 {[%emt 0:03:03]} Ke5 {[%emt 0:00:32]} 51. Kg4 {[%emt 0:00:52]} Kf6 {[%emt 0:02:35]} 52. Kf3 {[%emt 0:03:18]} Nd5 {[%emt 0:01:27]} 53. Bxc6 {[%emt 0:00:28]} Kxe6 {[%emt 0:00:16]} 54. c4 {[%emt 0:00:42]} Nc7 {[%emt 0:00:02]} 55. Bb7 {[%emt 0:01:35]} Ke5 {[%emt 0:00:14]} 56. Ke3 {[%emt 0:00:18]} Kd6 {[%emt 0:00:32]} 57. Bc8 {[%emt 0:02:02]} Kc5 {[%emt 0:00:17]} 58. Kd3 {[%emt 0:00:34]} Ne8 {[%emt 0:00:46]} 59. Kc3 {[%emt 0:01:10]} Nd6 {[%emt 0:01:47]} 60. Be6 {[%emt 0:00:06]} Ne8 {[%emt 0:00:28]} 61. Bc8 {[%emt 0:00:20]} Nf6 {[%emt 0:00:44]} 62. Be6 {[%emt 0:00:36]} Kd6 {[%emt 0:00:10]} 63. Bf5 {[%emt 0:00:31]} Ke5 {[%emt 0:00:12]} 64. Bh3 {[%emt 0:00:15]} Ne4+ {[%emt 0:00:13]} 65. Kb4 {[%emt 0:00:04]} Kd6 {[%emt 0:00:29]} 66. Bf5 {[%emt 0:00:22]} Nf6 {[%emt 0:00:21]} 67. Bg6 {[%emt 0:00:41]} Kc6 {[%emt 0:00:14]} 68. Bf7 {[%emt 0:00:14]} Kd6 {[%emt 0:00:25]} 69. Bg6 {[%emt 0:00:05]} Ng8 {[%emt 0:00:25]} 70. Bh7 {[%emt 0:00:43]} Nh6 {[%emt 0:00:40]} 71. Be4 {[%emt 0:00:32]} Ng4 {[%emt 0:00:17]} 72. Bf3 {[%emt 0:00:22]} Ne5 {[%emt 0:00:48]} 73. Be4 {[%emt 0:00:06]} Nd7 {[%emt 0:00:21]} 74. Kb5 {[%emt 0:00:38]} Nc5 {[%emt 0:00:26]} 75. Bd5 {[%emt 0:00:24]} Kc7 {[%emt 0:00:11]} 76. Bf3 {[%emt 0:00:12]} Nb3 {[%emt 0:00:40]} 77. Bb7 {[%emt 0:00:07]} Kd6 {[%emt 0:00:06]} 78. Bd5 {[%emt 0:00:32]} Nc1 {[%emt 0:01:18]} 79. Bf3 {[%emt 0:00:28]} Nb3 {[%emt 0:00:44]} 80. Bd5 {[%emt 0:00:05]} Kc7 {[%emt 0:00:56]} 81. Kb4 {[%emt 0:00:17]} Nc5 {[%emt 0:00:46]} 82. Kb5 {[%emt 0:00:08]} Kd6 {[%emt 0:00:04]} 83. Bg2 {[%emt 0:00:29]} Ne6 {[%emt 0:00:14]} 84. Bb7 {[%emt 0:00:10]} Kd7 {[%emt 0:01:01]} 85. Bc6+ {[%emt 0:00:22]} Kd8 {[%emt 0:00:14]} 86. Bb7 {[%emt 0:00:10]} Kc7 {[%emt 0:00:36]} 87. Bd5 {[%emt 0:00:12]} Nc5 {[%emt 0:00:03]} 88. Bg2 {[%emt 0:00:30]} Kd6 {[%emt 0:00:05]} 89. Bd5 {[%emt 0:00:13]} Kd7 {[%emt 0:00:11]} 90. Bc6+ {[%emt 0:00:07]} Kd6 {[%emt 0:00:01]} 91. Bd5 {[%emt 0:00:12]} Nd7 {[%emt 0:00:12]} 92. Bc6 {[%emt 0:00:23]} Ne5 {[%emt 0:00:11]} 93. Bd5 {[%emt 0:00:22]} Ng6 {[%emt 0:00:05]} 94. Be4 {[%emt 0:00:30]} Nf4 {[%emt 0:00:00]} 95. Kb4 {[%emt 0:00:15]} Ne2 {[%emt 0:00:19]} 96. Bf3 {[%emt 0:00:25]} Nf4 {[%emt 0:00:09]} 97. Be4 {[%emt 0:00:08]} Ne6 {[%emt 0:00:14]} 98. Bg2 {[%emt 0:00:24]} Nf4 {[%emt 0:00:08]} 99. Be4 {[%emt 0:00:06]} Ne6 {[%emt 0:00:02]} 100. Bg2 {[%emt 0:00:08]} Nf4 {[%emt 0:00:04]} 101. Be4 {[%emt 0:00:04]} Ne6 {[%emt 0:00:04]} 102. Bg2 {[%emt 0:00:07]} Nf4 {[%emt 0:00:03]} 103. Be4 {[%emt 0:00:04]} Ne6 {[%emt 0:00:06]} 104. Bg2 {[%emt 0:00:31]} Nf4 {[%emt 0:00:20]} 1/2-1/2